Cogmind - Beta 11.1 @@@ ROGUE MODE // 2022.06.02 @ 22:53:48 Player: darki Result: Destroyed by S-43 Plague with Heavy Machine Gun Performance ------------- Evolutions (9) 4500 Regions Visited (22) 4400 Robots Destroyed (251) 1255 Value Destroyed (12822) 12822 Prototype IDs (45) 900 Alien Tech Used (0) 0 Bonus (10596) 10596 TOTAL SCORE: 34473 Bonus ------- Triggered High Security 500 High Alert Combat Kills 2962 Follower Combat Kills 696 Entered DSFs 500 Aligned with FarCom 300 Met Warlord at Base 500 MAIN.C Attacked Warlord 500 Warlord Defense Kills 1298 Met Warlord at Research 2000 Invited to Help at Command 2000 Friendly Fire -660 Cogmind --------- Core Integrity 0/1600 Matter 250/300 Energy 100/100 System Corruption 0% Temperature Cool (0) Movement Core (50) Location -1/Command Parts ------- > --- POWER (2) -------- (None) > --- PROPULSION (10) -- Combat Linear Gravjet > --- UTILITY (10) ----- Improved System Guard > --- WEAPON (3) ------- Nanosword > --- INVENTORY (5) ---- Field Propulsion Array High-capacity Storage Unit Improved Matter Compressor (300) Improved Matter Compressor (51) Peak State ------------ > --- POWER ------------ Quantum Reactor Quantum Reactor > --- PROPULSION ------- Armored Heavy Treads Biometal Heavy Treads Biometal Heavy Treads Advanced Heavy Siege Treads Advanced Heavy Siege Treads > --- UTILITY ---------- Advanced Heat Sink High-capacity Storage Unit Improved Matter Compressor Improved Matter Compressor Advanced Trap Scanner Advanced Launcher Guidance Computer Advanced Target Analyzer Advanced Target Analyzer Advanced Weapon Cycler Antimissile System > --- WEAPON ----------- Fusion Bomb Launcher Hellfire Missile Launcher Advanced Micro-nuke Launcher > --- INVENTORY -------- Quantum Reactor Quantum Reactor Improved Heavy Siege Treads High-capacity Storage Unit Improved Matter Compressor Enhanced Nova Cannon Helical Railgun Gamma Bomb Array Advanced Concussive RPG Chain Missile Launcher Advanced Remote Datajack Nanosword [Rating: 208] Favorites ----------- Power Quantum Reactor Engine Cooled Ion Engine Power Core Reinforced Fission Core Reactor Quantum Reactor Propulsion Medium Treads Treads Medium Treads Leg Aluminum Leg Hover Unit Improved Antigrav System Flight Unit Xenon Bombardment Thruster Utility High-capacity Storage Unit Device Advanced Heat Sink Storage High-capacity Storage Unit Processor Advanced Target Analyzer Hackware Experimental System Shield Protection Layered Heavy Armor Plating Weapon Hardcell Cannon Energy Gun Small Laser Energy Cannon Heavy Plasma Cannon Ballistic Gun Heavy Assault Rifle Ballistic Cannon Hardcell Cannon Launcher Advanced Micro-nuke Launcher Special Weapon Advanced Remote Datajack Impact Weapon Maul Slashing Weapon Nanosword Piercing Weapon Heavy Pick Build | -11 -10 -10 -9 -9 -9 -8 -8 -7 -6 -6 -6 -5 -5 -4 -4 -4 -4 -3 -3 -2 -1 -1 ------- Run | Scr Mat Min Mat Min Exi Min Mat Fac Fac Was Fac Fac DSF Fac Upp Upp War Pro Res Res Acc Com Slots Evolved 18 | . . . 2 . . . 2 2 2 . . 2 . 2 . . . . 2 2 2 . Power 1 | . . . . . . . . . . . . . . 1 . . . . . . . . Propulsion 8 | . . . 1 . . . . 1 1 . . 1 . . . . . . . 2 2 . Utility 8 | . . . 1 . . . 1 1 1 . . 1 . 1 . . . . 2 . . . Weapon 1 | . . . . . . . 1 . . . . . . . . . . . . . . . Parts Attached 274 | . 7 1 20 3 2 . 12 18 7 9 7 2 20 8 7 3 11 7 91 16 23 . Power 28 | . 1 1 3 . . . 4 . . 2 2 . 1 1 1 . 1 2 7 . 2 . Engine 14 | . 1 . 3 . . . 4 . . 2 2 . . . 1 . . . 1 . . . Core 2 | . . 1 . . . . . . . . . . 1 . . . . . . . . . Reactor 12 | . . . . . . . . . . . . . . 1 . . 1 2 6 . 2 . Propulsion 60 | . 2 . 5 . . . 3 5 2 1 . 1 2 3 2 . 3 2 20 2 7 . Treads 37 | . 2 . 5 . . . 2 5 2 1 . 1 2 3 2 . 3 . 5 2 2 . Leg 3 | . . . . . . . 1 . . . . . . . . . . . 2 . . . Wheel . | . . . . . . . . . . . . . . . . . . . . . . . Hover 9 | . . . . . . . . . . . . . . . . . . 1 7 . 1 . Flight 11 | . . . . . . . . . . . . . . . . . . 1 6 . 4 . Utility 83 | . 2 . 4 3 2 . 3 6 4 3 1 1 10 1 4 3 3 3 23 3 4 . Device 35 | . 1 . 1 2 . . . 4 2 1 1 . 4 . 1 1 2 2 10 1 2 . Storage 11 | . 1 . . . 2 . . . . . . . . . . 1 . . 5 2 . . Processor 9 | . . . . . . . 1 . . 1 . . . . . . . . 5 . 2 . Hackware 3 | . . . . . . . . . . . . . 3 . . . . . . . . . Protection 25 | . . . 3 1 . . 2 2 2 1 . 1 3 1 3 1 1 1 3 . . . Artifact . | . . . . . . . . . . . . . . . . . . . . . . . Weapon 103 | . 2 . 8 . . . 2 7 1 3 4 . 7 3 . . 4 . 41 11 10 . Energy Gun 14 | . 2 . 4 . . . . 4 . 2 1 . . . . . . . 1 . . . Energy Cannon 15 | . . . 1 . . . . 2 1 . 2 . 4 . . . . . 1 2 2 . Ballistic Gun 12 | . . . 2 . . . . . . . . . . . . . . . 8 1 1 . Ballistic Cannon 16 | . . . . . . . . . . . . . . 3 . . 3 . 10 . . . Launcher 30 | . . . . . . . 1 1 . 1 1 . 3 . . . 1 . 10 7 5 . Special Weapon 2 | . . . 1 . . . . . . . . . . . . . . . . 1 . . Impact Weapon 1 | . . . . . . . 1 . . . . . . . . . . . . . . . Slashing Weapon 8 | . . . . . . . . . . . . . . . . . . . 6 . 2 . Piercing Weapon 5 | . . . . . . . . . . . . . . . . . . . 5 . . . Special Melee Weapon . | . . . . . . . . . . . . . . . . . . . . . . . Unidentified Prototypes 22 | . . . 2 1 . . 2 1 1 1 1 . 1 . . . 2 1 8 1 . . Corrupted Parts 2 | . . . . . . . . . . . . . 1 . . . 1 . . . . . System Corruption 9 | . . . . . . . . . . . . . 1 . . . 8 . . . . . Parts Lost 87 | . 2 2 6 . . . 6 . . 3 . . 6 4 5 1 3 4 25 1 19 . Power 12 | . 1 1 1 . . . . . . 1 . . . 1 . . 1 2 2 . 2 . Propulsion 31 | . . . 3 . . . 2 . . . . . 1 2 2 . . 1 12 . 8 . Utility 26 | . . 1 . . . . 2 . . 1 . . 3 . 3 1 1 1 9 1 3 . Weapon 18 | . 1 . 2 . . . 2 . . 1 . . 2 1 . . 1 . 2 . 6 . Highest Loss Streak 12 | . 2 1 5 . . . 2 . . 2 . . 3 4 3 1 2 3 7 1 12 . To Critical Strikes 1 | . . . . . . . . . . . . . . . . . . . . . 1 . Average Slot Usage (%) 81 | . 92 84 91 98 100 100 86 96 99 89 87 94 91 87 84 84 81 38 80 76 62 14 Engine 3 | . 12 4 8 11 11 11 7 7 6 5 1 5 3 . . 5 4 . 1 . . . Core 1 | . . 9 2 . . . . . . . . . 1 5 5 5 4 . . . . . Reactor 2 | . . . . . . . . . . . . . . 2 . . . 3 6 8 5 . Treads 20 | . 13 28 30 33 33 33 24 30 33 30 33 35 35 26 26 26 25 7 5 15 14 . Flight 1 | . . . . . . . . . . . . . . . . . . 2 7 . . 2 Device 11 | . 8 . 5 10 11 11 3 8 19 19 19 17 11 10 6 9 11 5 18 15 11 . Storage 7 | . 14 14 11 11 11 11 9 7 6 6 6 5 5 5 5 4 5 5 8 6 9 . Processor 4 | . . . . . . . 7 . . . . . . . . . . . 10 16 11 4 Hackware 1 | . . . . . . . . . . . . . 2 15 15 2 . . . . . . Protection 7 | . . . 10 9 11 11 14 21 12 5 6 11 13 5 8 14 14 7 3 . . . Energy Gun 5 | . 22 28 8 11 11 11 8 9 9 6 13 11 1 . . . . . . . . . Energy Cannon 1 | . . . 2 . . . . 6 9 7 6 5 11 5 . . . . . . . . Ballistic Gun 2 | . 5 . 10 11 11 11 6 . . . . . . . . . . . 1 1 . . Ballistic Cannon 4 | . . . . . . . . . . . . . . 9 15 15 11 5 5 . . . Launcher 1 | . . . . . . . 1 2 . 3 . . 1 . . . 1 . 1 8 8 . Naked Turns 3 | . . . . . . . . . . . . . . . . . . . . . 3 . Heaviest Build 140 | 14 16 17 34 33 63 63 63 73 90 90 95 103 140 129 130 130 124 105 133 130 130 2 Greatest Support 370 | 20 46 46 63 63 63 63 63 112 140 140 140 168 168 171 163 155 162 102 230 300 370 15 Greatest Overweight (x) 29 | . . . . . . . 1 . . . 1 . . 1 . . 1 29 4 . . . Average Overweight (x) . | . . . . . . . . . . . . . . . . . . 1 1 . . . Largest Inventory Capacity 20 | . 10 10 10 10 20 20 20 20 20 20 20 20 20 20 20 20 5 5 20 20 20 5 Average Capacity 14 | . 9 10 10 10 12 20 20 20 20 20 20 20 20 20 20 6 5 5 17 20 16 5 Most Carried 20 | . 10 10 10 10 14 14 20 20 20 20 20 19 20 20 14 14 5 3 20 20 15 5 Average Carried 12 | . 8 10 8 9 10 14 16 19 19 16 18 18 18 15 11 5 4 2 15 16 11 4 Final Capacity 20 | 8 10 10 10 10 20 20 20 20 20 20 20 20 20 20 20 5 5 5 20 20 5 5 Final Carried 20 | 6 10 10 10 10 14 14 20 20 20 19 20 18 20 14 13 5 3 3 15 15 4 5 Class Distribution -------------------- 28% | Mutant 15% | Tank 12% | Scavenger-Mutant 8% | Hacker-Tank 8% | Scavenger-Tank 7% | Skirmisher 5% | Scavenger-Skirmisher 4% | Scavenger-Gunner 4% | Gunner Dominant Class ---------------- Scavenger-Mutant | -10/Materials Mutant | -10/Mines Mutant | -9/Materials Mutant | -9/Mines Mutant | -9/Exiles Mutant | -8/Mines Mutant | -8/Materials Tank | -7/Factory Tank | -6/Factory Skirmisher | -6/Waste Skirmisher | -6/Factory Tank | -5/Factory Tank | -5/DSF Hacker-Skirmisher | -4/Factory Hacker-Tank | -4/Upper Caves Tank | -4/Upper Caves Tank | -4/Warlord Scavenger-Tank | -3/Proximity Caves Scavenger-Mutant | -3/Research Mutant | -2/Research Mutant | -1/Access Mutant | -1/Command Resources | -11 -10 -10 -9 -9 -9 -8 -8 -7 -6 -6 -6 -5 -5 -4 -4 -4 -4 -3 -3 -2 -1 -1 ----------- Run | Scr Mat Min Mat Min Exi Min Mat Fac Fac Was Fac Fac DSF Fac Upp Upp War Pro Res Res Acc Com Matter Collected 7704 | 200 317 10 332 81 10 . 233 91 85 174 80 . 327 296 544 165 222 167 1418 1730 1222 . Remotely 156 | . . . . . . . . . . . . . . . . . . 36 120 . . . Salvage Created 9667 | . 635 235 706 83 . . 604 136 85 145 241 . 931 277 422 37 176 376 1936 802 1772 68 Parts 459 | . 39 18 34 6 . . 26 2 5 . 13 . 31 3 8 3 9 20 128 25 85 4 Haulers Intercepted 6 | . 1 . 2 . . . 1 1 . . . . . . . . . . . . 1 . Recyclers Shooed 3 | . 1 . 2 . . . . . . . . . . . . . . . . . . . Parts Field Recycled . | . . . . . . . . . . . . . . . . . . . . . . . Retrieved Matter . | . . . . . . . . . . . . . . . . . . . . . . . Parts Self-Destructed 35 | . . . . . . . . . . . . . . . 8 7 . 20 . . . . Prevented 1 | . . . . . . . . . . . . . . . . . . 1 . . . . Kills | -11 -10 -10 -9 -9 -9 -8 -8 -7 -6 -6 -6 -5 -5 -4 -4 -4 -4 -3 -3 -2 -1 -1 ------- Run | Scr Mat Min Mat Min Exi Min Mat Fac Fac Was Fac Fac DSF Fac Upp Upp War Pro Res Res Acc Com Combat Hostiles Destroyed 212 | . 8 8 14 6 . . 9 2 1 2 4 . 11 6 11 3 11 14 33 35 32 2 Melee 15 | . . . . . . . . . . . . . . . . . 1 . 11 . 1 2 Guns 49 | . 6 8 12 6 . . 7 . . . 3 . 1 . . . . . 5 1 . . Cannons 66 | . . . 2 . . . . 1 1 . 1 . 7 6 11 3 3 12 13 1 5 . AOE 77 | . 2 . . . . . 1 . . 2 . . 2 . . . 7 2 4 33 24 . Classes Destroyed 25 | . 5 2 4 1 . . 1 1 . 1 1 . 1 . 1 . 2 . 1 2 2 . Worker 8 | . 1 . . . . . 2 . . . 2 . . . . . . . 1 . 2 . Builder 13 | . 3 . . . . . . . . . 1 . . . . . . . 4 . 5 . Tunneler 1 | . . 1 . . . . . . . . . . . . . . . . . . . . Hauler 6 | . 1 . 2 . . . 1 1 . . . . . . . . . . . . 1 . Recycler 5 | . 1 . 1 . . . . . . . . . . . . . . . 2 . 1 . Operator 4 | . . . 1 . . . . . 1 . 1 . . . . . . . 1 . . . Watcher 2 | . . . . . . . 1 . . . . . . . . . . . 1 . . . Swarmer 60 | . . 5 4 5 . . . . . . . . 4 . 7 3 3 9 4 10 4 2 Cutter 1 | . . . . . . . . . . . . . . . . . . . . . 1 . Saboteur 1 | . . . . . . . . . . . . . . . . . 1 . . . . . Grunt 65 | . 8 3 5 . . . 5 1 . . 2 . 2 6 2 . 3 4 3 11 10 . Brawler 3 | . . . 1 . . . . . . . . . 1 . . . . . . . 1 . Duelist 3 | . . . 1 . . . . . . . . . . . . . . . . 1 1 . Protector 1 | . . . . . . . . . . . . . . . . . . . 1 . . . Sentry 12 | . . . 3 . . . 4 . 1 . . . . . 1 . . . 2 . 1 . Demolisher 1 | . . . . . . . . . . . . . . . . . . . . 1 . . Specialist 6 | . . . . . . . . . . . . . 4 . . . . . 2 . . . Hunter 9 | . . . . . . . . . . . 1 . . . . . . . . 3 5 . Programmer 38 | . . . . . . . . 1 . . 1 . . . . . 3 1 21 2 9 . Behemoth 1 | . . . . . . . . . . . . . . . 1 . . . . . . . Compactor 2 | . . . . . . . . . . 2 . . . . . . . . . . . . Striker 5 | . . . . . . . . . . . . . . . . . 1 . . 4 . . Executioner 3 | . . . . . . . . . . . . . . . . . . . . 3 . . Assembled 1 | . . . . 1 . . . . . . . . . . . . . . . . . . Fireman 2 | . . . . . . . . . . . . . . . . . . . . . 2 . Best Kill Streak 13 | . 4 3 4 3 . . 5 2 1 2 4 . 2 4 5 3 9 7 5 13 11 2 Combat Bots Only 13 | . 2 3 4 3 . . 3 1 1 2 2 . 2 4 5 3 9 7 3 13 8 2 Max Kills in Single Turn 6 | . 2 1 1 1 . . 3 1 1 2 4 . 2 1 1 1 4 2 2 6 5 1 Gunslinging . | . . . . . . . . . . . . . . . . . . . . . . . Exploded 6 | . 1 . . . . . 1 . . 2 . . 2 . . . 4 2 2 6 4 . Melee 1 | . . . . . . . . . . . . . . . . . 1 . 1 . 1 1 Uniques/NPCs Destroyed . | . . . . . . . . . . . . . . . . . . . . . . . Combat | -11 -10 -10 -9 -9 -9 -8 -8 -7 -6 -6 -6 -5 -5 -4 -4 -4 -4 -3 -3 -2 -1 -1 -------- Run | Scr Mat Min Mat Min Exi Min Mat Fac Fac Was Fac Fac DSF Fac Upp Upp War Pro Res Res Acc Com Damage Taken 27141 | . 436 248 1029 126 . 84 1260 113 60 924 449 . 1797 1789 1160 194 2049 477 6758 2362 5453 373 Core 3369 | . 23 27 118 13 . 13 156 . 21 67 11 . 118 76 58 . 242 43 508 273 1372 230 Absorbed by Shields 396 | . . . 64 96 . 24 52 . . . . . . . . 48 112 . . . . . Reduced by Siege Mode 1028 | . . . . . . . . . . . . . . . . . . . 334 341 353 . Redirected to Shielding 210 | . . . 2 . . . . . . . . . . . . . 208 . . . . . Core Remaining (%) 79 | 100 . 80 . . . 64 71 100 . . 88 . 88 . . . . 63 60 81 . . Volleys Fired 417 | . 48 30 53 17 . . 35 6 8 7 11 . 32 19 23 4 6 . 57 22 39 . Largest 3 | . 2 2 2 2 . . 2 3 3 3 3 . 3 3 3 3 3 . 3 3 3 . Hottest 270 | . 80 80 91 79 . . 92 163 190 191 191 . 270 245 195 195 195 . 235 158 260 . Shots Fired 993 | . 96 60 103 34 . . 58 18 24 18 29 . 62 50 69 12 30 48 159 53 70 . Gun 461 | . 96 60 84 34 . . 51 12 11 5 18 . 10 . . . . . 74 2 4 . Cannon 409 | . . . 19 . . . . 6 13 11 11 . 44 50 69 12 27 48 78 3 18 . Launcher 122 | . . . . . . . 7 . . 2 . . 8 . . . 3 . 7 47 48 . Special 1 | . . . . . . . . . . . . . . . . . . . . 1 . . Kinetic 435 | . 19 . 49 17 . . 17 . . . . . . 36 69 12 27 48 135 2 4 . Thermal 392 | . 51 60 54 17 . . 34 18 24 16 29 . 54 14 . . . . . 3 18 . Explosive 93 | . . . . . . . . . . 2 . . . . . . . . 7 47 37 . Electromagnetic 69 | . 26 . . . . . 7 . . . . . 8 . . . . . 17 . 11 . Entropic 3 | . . . . . . . . . . . . . . . . . 3 . . . . . Robot Hit Streak 47 | . 13 8 17 4 . . 9 9 20 10 8 . 14 10 8 2 7 30 19 35 47 . Robot Miss Streak 5 | . 3 3 2 2 . . 3 1 1 2 2 . 3 2 4 3 5 3 2 1 1 . Penetration Max 1 | . . . . . . . . . . . . . . . . . . . . 1 . . Secondary Targets 4 | . . 1 . 1 . . 1 . . . . . . . . . . . 1 . . . Max Gunslinging Chain 1 | . . 1 . 1 . . 1 . . . . . . . . . . . 1 . . . Autonomous 84 | . . . . . . . . . . . . . . . . . 15 48 21 . . . Shots Hit Robots 689 | . 64 26 68 18 . . 40 14 13 13 17 . 38 33 35 4 18 40 150 37 56 5 Core Hits 449 | . 28 14 29 7 . . 23 3 3 3 12 . 17 13 16 3 12 12 57 88 107 2 Critical Kills 1 | . . . . . . . . . . . . . . . . . . . . 1 . . Critical Parts Destroyed 6 | . . . 1 . . . . . . . . . . . . . . . 4 1 . . Critical Strikes 53 | . . . 1 1 . . 6 3 . 1 2 . 1 2 1 2 3 3 25 2 . . Burn 14 | . . . . 1 . . 6 3 . 1 2 . 1 . . . . . . . . . Destroy 7 | . . . 1 . . . . . . . . . . . . . . . 4 2 . . Blast 25 | . . . . . . . . . . . . . . 2 1 2 3 3 14 . . . Sever 3 | . . . . . . . . . . . . . . . . . . . 3 . . . Impale 4 | . . . . . . . . . . . . . . . . . . . 4 . . . Melee Attacks 94 | . . . . . . . 8 . . . . . . . . . . . 69 . 7 10 Impact 8 | . . . . . . . 8 . . . . . . . . . . . . . . . Slashing 56 | . . . . . . . . . . . . . . . . . . . 39 . 7 10 Piercing 30 | . . . . . . . . . . . . . . . . . . . 30 . . . Sneak Attacks 6 | . . . . . . . . . . . . . . . . . . . 6 . . . Combat Hostiles . | . . . . . . . . . . . . . . . . . . . . . . . Follow-up Attacks 3 | . . . . . . . . . . . . . . . . . . . 3 . . . Damage Inflicted 40940 | . 909 303 1075 283 . . 912 366 279 542 767 . 1314 1322 1421 219 3246 2552 7343 10125 7661 301 Guns 5258 | . 766 303 786 283 . . 637 205 143 68 359 . 192 . . . . . 1381 75 60 . Cannons 12568 | . . . 289 . . . . 161 136 290 235 . 754 1322 1421 219 1196 2319 3409 135 682 . Explosions 21121 | . 143 . . . . . 275 . . 184 173 . 368 . . . 2050 233 976 9915 6804 . Melee 1918 | . . . . . . . . . . . . . . . . . . . 1561 . 56 301 Ramming 75 | . . . . . . . . . . . . . . . . . . . 16 . 59 . Kinetic 11925 | . 124 . 549 130 . . 199 . . . . . . 923 1421 219 1196 2319 4710 75 60 . Thermal 6336 | . 491 303 526 153 . . 438 366 279 358 767 . 946 399 . . . 233 . 135 942 . Explosive 16816 | . . . . . . . 116 . . 184 . . . . . . . . 976 9915 5625 . Electromagnetic 1820 | . 294 . . . . . 159 . . . . . 368 . . . . . 80 . 919 . Impact . | . . . . . . . . . . . . . . . . . . . . . . . Slashing 738 | . . . . . . . . . . . . . . . . . . . 381 . 56 301 Piercing 1180 | . . . . . . . . . . . . . . . . . . . 1180 . . . Entropic 2050 | . . . . . . . . . . . . . . . . . 2050 . . . . . Highest Corruption 51 | . . . . . . . 10 . . . . . 2 . . . 10 10 51 2 9 . Average Corruption 12 | . . . . . . . 5 . . . . . 1 . . . 3 10 19 1 5 . Corruption Purged 10 | . . . . . . . . . . . . . . . . . . . 10 . . . Corruption Blocked 58 | . . . . . . . . . . . . . . . . . . . 26 32 . . Effects 251 | . . . . . . . 28 . . . . . 4 . . . 7 58 136 2 16 . Message Errors 68 | . . . . . . . 6 . . . . . . . . . 4 14 37 1 6 . Matter Fused 62 | . . . . . . . 6 . . . . . 2 . . . . 14 38 . 2 . Heat Flow Errors 25 | . . . . . . . 4 . . . . . 2 . . . . 4 13 . 2 . Energy Discharges 25 | . . . . . . . 2 . . . . . . . . . 1 6 15 1 . . Parts Rejected 2 | . . . . . . . . . . . . . . . . . 1 . 1 . . . Data Loss (minor) 33 | . . . . . . . 3 . . . . . . . . . 1 13 15 . 1 . Data Loss (major) 13 | . . . . . . . 1 . . . . . . . . . . 3 7 . 2 . Misfires 6 | . . . . . . . 1 . . . . . . . . . . . 4 . 1 . Alerts 10 | . . . . . . . 3 . . . . . . . . . . 4 2 . 1 . Misdirections 2 | . . . . . . . . . . . . . . . . . . . 2 . . . Weapon Failures 5 | . . . . . . . 2 . . . . . . . . . . . 2 . 1 . Overload Shots . | . . . . . . . . . . . . . . . . . . . . . . . Overflow Damage 2765 | . 38 . 11 . . . . 18 . . 16 . . 27 139 28 288 356 955 598 291 . Projectiles 1369 | . . . 11 . . . . 18 . . 16 . . 27 139 28 114 356 660 . . . Explosions 1101 | . 38 . . . . . . . . . . . . . . . 174 . . 598 291 . Melee 295 | . . . . . . . . . . . . . . . . . . . 295 . . . Knockbacks 54 | . . . . . . . . . . . . . . 13 6 5 6 6 17 . 1 . Impact 2 | . . . . . . . . . . . . . . . . . . . 1 . 1 . Kinetic 47 | . . . . . . . . . . . . . . 11 6 3 5 6 16 . . . Secondary 5 | . . . . . . . . . . . . . . 2 . 2 1 . . . . . Self-Inflicted Damage 806 | . 93 . . . . . 43 . . 25 . . . . . . 148 . . 256 241 . Shots 19 | . 2 . . . . . 4 . . 1 . . . . . . 1 . . 5 6 . Rammed 8 | . . . . . . . . . . . . . . . . . . . 1 . 7 . Targets Rammed 9 | . . . . . . . . . . . . . . . . . . . 2 . 7 . Kicked . | . . . . . . . . . . . . . . . . . . . . . . . Crushed 1 | . . . . . . . . . . . . . . . . . . . 1 . . . Highest Temperature 857 | . 146 168 164 108 . 4 274 36 60 54 190 . 857 486 317 409 276 221 269 136 726 . Average Temperature 105 | . 37 66 40 53 . 4 64 18 24 21 62 . 234 192 103 198 117 109 75 55 195 . Received Heat Transfer 2695 | . 213 75 171 . . 42 325 45 24 . 90 . 366 451 102 13 235 . 102 108 333 . Effects 56 | . . . . . . . 1 . . . . . 33 5 1 2 . . 1 . 13 . Shutdowns 11 | . . . . . . . . . . . . . 5 3 . 1 . . . . 2 . Energy Bleed 7 | . . . . . . . 1 . . . . . 2 . 1 . . . 1 . 2 . Interference 14 | . . . . . . . . . . . . . 7 2 . . . . . . 5 . Matter Decay 3 | . . . . . . . . . . . . . 1 . . . . . . . 2 . Short Circuit 4 | . . . . . . . . . . . . . 2 . . . . . . . 2 . Damage (minor) 4 | . . . . . . . . . . . . . 3 . . 1 . . . . . . Damage (major) 13 | . . . . . . . . . . . . . 13 . . . . . . . . . Siege Activations 16 | . . . . . . . . . . . . . . . . . . . 6 4 6 . Total Turns 247 | . . . . . . . . . . . . . . . . . . . 133 49 65 . Longest Duration 67 | . . . . . . . . . . . . . . . . . . . 67 23 31 . Robots Corrupted 2 | . . . . . . . . . . . . . . . . . . . . . 2 . Combat Hostiles 2 | . . . . . . . . . . . . . . . . . . . . . 2 . Parts Fried 4 | . . . . . . . . . . . . . . . . 1 . . . . 3 . Impact Corruptions 1 | . . . . . . . . . . . . . . . . 1 . . . . . . Robots Melted 3 | . . . . . . . 1 1 . . . . 1 . . . . . . . . . Combat Hostiles 3 | . . . . . . . 1 1 . . . . 1 . . . . . . . . . Parts Melted 30 | . 3 3 1 . . . 6 3 3 . 2 . 3 . . . . 2 . 1 3 . Heat Transferred 10510 | . 900 675 1054 407 . . 1406 805 546 635 1203 . 1414 535 . . . 240 . 111 579 . Parts Sabotaged 11 | . . . . . . . . . . . . . . . . . 8 . . . 3 . Parts Stolen . | . . . . . . . . . . . . . . . . . . . . . . . Parts Stripped . | . . . . . . . . . . . . . . . . . . . . . . . Power Chain Reactions 3 | . 2 . . . . . . . . . . . . . . . . . . . 1 . Missiles Intercepted 2 | . . . . . . . . . . . . . . . . . . . . 2 . . Alert | -11 -10 -10 -9 -9 -9 -8 -8 -7 -6 -6 -6 -5 -5 -4 -4 -4 -4 -3 -3 -2 -1 -1 ------- Run | Scr Mat Min Mat Min Exi Min Mat Fac Fac Was Fac Fac DSF Fac Upp Upp War Pro Res Res Acc Com Peak Influence 2417 | . 240 153 259 219 . . 205 88 132 25 427 208 434 265 . . . . 464 1352 2417 1611 Initial 1556 | . . 40 27 64 . . . 88 35 . . 208 145 217 . . . . 82 232 811 1556 Average 226 | . 80 93 117 107 . . 75 42 71 8 115 208 298 193 . . . . 130 244 1510 1566 Maximum Alert Level 5 | . 1 . 1 1 . . 1 . . . 2 1 2 1 . . . . 2 4 5 5 Low Security (%) 69 | . 93 100 82 60 . 100 99 100 100 100 67 . 27 43 . . . . 76 53 . . Level 1 20 | . 6 . 17 39 . . . . . . 29 100 48 56 . . . . 21 34 . . Level 2 1 | . . . . . . . . . . . 3 . 23 . . . . . 2 4 . . Level 3 . | . . . . . . . . . . . . . . . . . . . . 2 9 . Level 4 4 | . . . . . . . . . . . . . . . . . . . . 4 50 88 Level 5 . | . . . . . . . . . . . . . . . . . . . . . 4 11 High Security 2 | . . . . . . . . . . . . . . . . . . . . . 35 . Max Security . | . . . . . . . . . . . . . . . . . . . . . . . Sterilizations 1 | . . . . . . . . . . . . . 1 . . . . . . . . . Squads Dispatched 55 | . 3 . 1 . . . 1 2 . . 7 1 2 1 . . . . 12 . 25 . Investigation 1 | . 1 . . . . . . . . . . . . . . . . . . . . . Extermination 17 | . . . . . . . . 1 . . 2 1 . 1 . . . . 10 . 2 . Reinforcement 18 | . 2 . 1 . . . 1 1 . . 5 . 2 . . . . . 2 . 4 . Assault 15 | . . . . . . . . . . . . . . . . . . . . . 15 . Garrison 4 | . . . . . . . . . . . . . . . . . . . . . 4 . Intercept . | . . . . . . . . . . . . . . . . . . . . . . . Searches Triggered . | . . . . . . . . . . . . . . . . . . . . . . . Construction Impeded 2 | . . . . . . . . . . . 1 . . . . . . . . . 1 . Haulers Reinforced 2 | . . . . . . . . 1 . . . . . . . . . . . . 1 . Active Scanning Responses . | . . . . . . . . . . . . . . . . . . . . . . . Cargo Convoy Interrupts 1 | . . . . . . . . . . . . . . . . . . . 1 . . . Stealth | -11 -10 -10 -9 -9 -9 -8 -8 -7 -6 -6 -6 -5 -5 -4 -4 -4 -4 -3 -3 -2 -1 -1 --------- Run | Scr Mat Min Mat Min Exi Min Mat Fac Fac Was Fac Fac DSF Fac Upp Upp War Pro Res Res Acc Com Distress Signals 23 | . . . 3 . . . 2 1 . . . . . 1 . . 1 . 2 9 3 1 Communications Jammed . | . . . . . . . . . . . . . . . . . . . . . . . Distress Signals . | . . . . . . . . . . . . . . . . . . . . . . . Times Spotted 357 | . 16 10 26 8 . 3 16 5 2 5 13 . 16 12 11 7 28 10 47 45 72 5 Peak Tracking Total 21 | . 3 3 6 4 . 3 4 3 1 4 5 1 5 6 5 5 16 3 6 9 21 7 Tactical Retreats 28 | . . 1 1 1 . . 2 . . . . . 3 2 . 2 . 1 3 1 10 1 Traps | -11 -10 -10 -9 -9 -9 -8 -8 -7 -6 -6 -6 -5 -5 -4 -4 -4 -4 -3 -3 -2 -1 -1 ------- Run | Scr Mat Min Mat Min Exi Min Mat Fac Fac Was Fac Fac DSF Fac Upp Upp War Pro Res Res Acc Com Traps Triggered 6 | . 1 . . . . . 1 . 1 . . . 1 . . . . . 1 . 1 . Indirectly . | . . . . . . . . . . . . . . . . . . . . . . . Trap Hack Attempts . | . . . . . . . . . . . . . . . . . . . . . . . Triggered . | . . . . . . . . . . . . . . . . . . . . . . . Disarmed . | . . . . . . . . . . . . . . . . . . . . . . . Reprogrammed . | . . . . . . . . . . . . . . . . . . . . . . . Reused . | . . . . . . . . . . . . . . . . . . . . . . . Traps Extracted . | . . . . . . . . . . . . . . . . . . . . . . . Installed . | . . . . . . . . . . . . . . . . . . . . . . . Triggered 27 | . . . . . . . . . . . . . . . . 2 23 . 2 . . . Machines | -11 -10 -10 -9 -9 -9 -8 -8 -7 -6 -6 -6 -5 -5 -4 -4 -4 -4 -3 -3 -2 -1 -1 ---------- Run | Scr Mat Min Mat Min Exi Min Mat Fac Fac Was Fac Fac DSF Fac Upp Upp War Pro Res Res Acc Com Machines Disabled 34 | . . . 4 . . . 3 . 2 . 5 . 2 . . . . 4 3 6 5 . Max in Single Turn 5 | . . . 1 . . . 1 . 1 . 5 . 1 . . . . 3 1 1 2 . Garrison Access 4 | . . . . . . . 1 . . . . . . . . . . . . 2 1 . Energy Cycler 1 | . . . . . . . . . . . . . . . . . . . . . 1 . Machines Sabotaged . | . . . . . . . . . . . . . . . . . . . . . . . Garrisons Compromised 1 | . . . . . . . . . . . . . . . . . . . 1 . . . Overloaded Fab Kills . | . . . . . . . . . . . . . . . . . . . . . . . Hacking | -11 -10 -10 -9 -9 -9 -8 -8 -7 -6 -6 -6 -5 -5 -4 -4 -4 -4 -3 -3 -2 -1 -1 --------- Run | Scr Mat Min Mat Min Exi Min Mat Fac Fac Was Fac Fac DSF Fac Upp Upp War Pro Res Res Acc Com Machines Accessed 26 | . 1 . 2 1 1 . 2 1 2 . 4 2 . 1 . 3 2 . 3 . 1 . Terminals 13 | . 1 . 2 . . . 1 1 1 . 2 1 . 1 . . . . 3 . . . Fabricators 3 | . . . . . . . . . 1 . 1 . . . . . . . . . 1 . Repair Stations 1 | . . . . . . . . . . . 1 . . . . . . . . . . . Recycling Units 1 | . . . . . . . . . . . . 1 . . . . . . . . . . Scanalyzers . | . . . . . . . . . . . . . . . . . . . . . . . Garrison Access 1 | . . . . . . . 1 . . . . . . . . . . . . . . . Total Hacks 34 | . 1 . 2 1 1 . 2 1 2 . 6 3 . 1 . 6 2 . 5 . 1 . Successful 18 | . . . 1 1 1 . 1 . 1 . 2 2 . 1 . 6 2 . . . . . Failed 16 | . 1 . 1 . . . 1 1 1 . 4 1 . . . . . . 5 . 1 . Catastrophic 6 | . . . 1 . . . . 1 . . 1 . . . . . . . 3 . . . Database Lockouts . | . . . . . . . . . . . . . . . . . . . . . . . Manual 13 | . 1 . 2 . 1 . 1 1 2 . 2 . . . . . 1 . 2 . . . Terminals 15 | . 1 . 2 . . . 1 1 1 . 2 1 . 1 . . . . 5 . . . Fabricators 3 | . . . . . . . . . 1 . 1 . . . . . . . . . 1 . Repair Stations 3 | . . . . . . . . . . . 3 . . . . . . . . . . . Recycling Units 2 | . . . . . . . . . . . . 2 . . . . . . . . . . Scanalyzers . | . . . . . . . . . . . . . . . . . . . . . . . Garrison Access 1 | . . . . . . . 1 . . . . . . . . . . . . . . . Terminal Hacks 13 | . . . 1 1 1 . . . . . . 1 . 1 . 6 2 . . . . . Record 4 | . . . . . . . . . . . . . . . . 4 . . . . . . Open Door 5 | . . . . 1 . . . . . . . . . . . 2 2 . . . . . Open DSF 2 | . . . . . . . . . . . . 1 . 1 . . . . . . . . Branch Access Points 1 | . . . 1 . . . . . . . . . . . . . . . . . . . EX-Prototype ID Bank 1 | . . . . . 1 . . . . . . . . . . . . . . . . . Fabricator Hacks 1 | . . . . . . . . . . . 1 . . . . . . . . . . . Build 1 | . . . . . . . . . . . 1 . . . . . . . . . . . Repair Station Hacks 1 | . . . . . . . . . . . 1 . . . . . . . . . . . Scan Component 1 | . . . . . . . . . . . 1 . . . . . . . . . . . Recycling Unit Hacks 1 | . . . . . . . . . . . . 1 . . . . . . . . . . Report Inventory 1 | . . . . . . . . . . . . 1 . . . . . . . . . . Scanalyzer . | . . . . . . . . . . . . . . . . . . . . . . . Garrison Access Hacks 1 | . . . . . . . 1 . . . . . . . . . . . . . . . Seal Access 1 | . . . . . . . 1 . . . . . . . . . . . . . . . Unauthorized Hacks 1 | . . . . . . . . . 1 . . . . . . . . . . . . . Terminals . | . . . . . . . . . . . . . . . . . . . . . . . Fabricators 1 | . . . . . . . . . 1 . . . . . . . . . . . . . Report 1 | . . . . . . . . . 1 . . . . . . . . . . . . . Repair Stations . | . . . . . . . . . . . . . . . . . . . . . . . Recycling Units . | . . . . . . . . . . . . . . . . . . . . . . . Scanalyzers . | . . . . . . . . . . . . . . . . . . . . . . . Garrison Access . | . . . . . . . . . . . . . . . . . . . . . . . Data Cores Recovered 2 | . . . . . . . . . 1 . . . . . . . . . 1 . . . Used 1 | . . . . . . . . . 1 . . . . . . . . . . . . . Hacking Detections 11 | . 1 . 1 . . . 1 1 . . 3 1 . . . . . . 2 . 1 . Full Trace Events . | . . . . . . . . . . . . . . . . . . . . . . . Feedback Events . | . . . . . . . . . . . . . . . . . . . . . . . Feedback Blocked . | . . . . . . . . . . . . . . . . . . . . . . . Robot Schematics Acquired . | . . . . . . . . . . . . . . . . . . . . . . . Robots Built . | . . . . . . . . . . . . . . . . . . . . . . . Authchips . | . . . . . . . . . . . . . . . . . . . . . . . Time . | . . . . . . . . . . . . . . . . . . . . . . . Total Robot Build Rating . | . . . . . . . . . . . . . . . . . . . . . . . Part Schematics Acquired . | . . . . . . . . . . . . . . . . . . . . . . . Parts Built . | . . . . . . . . . . . . . . . . . . . . . . . Authchips . | . . . . . . . . . . . . . . . . . . . . . . . Time 128 | . . . . . . . . . . . 128 . . . . . . . . . . . Total Part Build Rating . | . . . . . . . . . . . . . . . . . . . . . . . Parts Repaired . | . . . . . . . . . . . . . . . . . . . . . . . Time . | . . . . . . . . . . . . . . . . . . . . . . . Parts Recycled . | . . . . . . . . . . . . . . . . . . . . . . . Recycled Matter . | . . . . . . . . . . . . . . . . . . . . . . . Retrieved Matter . | . . . . . . . . . . . . . . . . . . . . . . . Retrieved Components . | . . . . . . . . . . . . . . . . . . . . . . . Parts Scanalyzed . | . . . . . . . . . . . . . . . . . . . . . . . Part Schematics Acquired . | . . . . . . . . . . . . . . . . . . . . . . . Parts Damaged . | . . . . . . . . . . . . . . . . . . . . . . . Bothacking | -11 -10 -10 -9 -9 -9 -8 -8 -7 -6 -6 -6 -5 -5 -4 -4 -4 -4 -3 -3 -2 -1 -1 ------------ Run | Scr Mat Min Mat Min Exi Min Mat Fac Fac Was Fac Fac DSF Fac Upp Upp War Pro Res Res Acc Com Used RIF Installer . | . . . . . . . . . . . . . . . . . . . . . . . Robots Hacked 1 | . . . . . . . . . . . . . . . . . . . . 1 . . Non-combat . | . . . . . . . . . . . . . . . . . . . . . . . Combat . | . . . . . . . . . . . . . . . . . . . . . . . Robot Hacks Applied . | . . . . . . . . . . . . . . . . . . . . . . . Manual 1 | . . . . . . . . . . . . . . . . . . . . 1 . . Relay Couplers Released 14 | . . . . . . . . . . . 3 . . . . . . . . 9 2 . Machine Destruction 5 | . . . . . . . . . . . . . . . . . . . . 3 2 . Programmers 9 | . . . . . . . . . . . 3 . . . . . . . . 6 . . Fabnet Peak Effective % . | . . . . . . . . . . . . . . . . . . . . . . . Robots Rewired . | . . . . . . . . . . . . . . . . . . . . . . . Allies Hacked 1 | . . . . . . . . . . . . . . . . . . . . . 1 . Hacks Repelled . | . . . . . . . . . . . . . . . . . . . . . . . Allies | -11 -10 -10 -9 -9 -9 -8 -8 -7 -6 -6 -6 -5 -5 -4 -4 -4 -4 -3 -3 -2 -1 -1 -------- Run | Scr Mat Min Mat Min Exi Min Mat Fac Fac Was Fac Fac DSF Fac Upp Upp War Pro Res Res Acc Com Total Allies 22 | . . 2 . . . . . . . 19 . . . . . . . . . 1 . . Largest Group 19 | . . 2 . . . . . . . 19 13 . . . . . . . . 1 1 . Highest-Rated Group 702 | . . 43 . . . . . . . 702 531 . . . . . . . . 148 148 . Highest-Rated Ally 148 | . . 31 . . . . . . . 50 50 . . . . . . . . 148 148 . Total Orders 2 | . . . . . . . . . . . . . . . . . . . . . 2 . EXPLORE 2 | . . . . . . . . . . . . . . . . . . . . . 2 . Ally Attacks 156 | . . 8 . . . . . . . 49 39 . . . . . . . . 26 34 . Total Damage 5641 | . . 125 . . . . . . . 2001 2022 . . . . . . . . 587 906 . Kills 28 | . . 1 . . . . . . . 7 16 . . . . . . . . 1 3 . Allies Corrupted 2 | . . . . . . . . . . . 2 . . . . . . . . . . . Allies Melted 3 | . . . . . . . . . . . . . . . . . . . . 2 1 . Intel | -11 -10 -10 -9 -9 -9 -8 -8 -7 -6 -6 -6 -5 -5 -4 -4 -4 -4 -3 -3 -2 -1 -1 ------- Run | Scr Mat Min Mat Min Exi Min Mat Fac Fac Was Fac Fac DSF Fac Upp Upp War Pro Res Res Acc Com Robot Analysis Total . | . . . . . . . . . . . . . . . . . . . . . . . Derelict Logs Recovered 7 | . . 2 . 2 . . . . . . . . . . 2 1 . . . . . . Drone Launches 16 | . . . . . . . . . . 12 . . . . . . . . . . 4 . Drone Recoveries 2 | . . . . . . . . . . . . . . . . . . . . . 2 . Exploration | -11 -10 -10 -9 -9 -9 -8 -8 -7 -6 -6 -6 -5 -5 -4 -4 -4 -4 -3 -3 -2 -1 -1 ------------- Run | Scr Mat Min Mat Min Exi Min Mat Fac Fac Was Fac Fac DSF Fac Upp Upp War Pro Res Res Acc Com Turns Passed 22720 | . 799 779 895 835 737 10 1038 984 467 459 1292 258 430 703 1903 572 1867 1491 4534 1520 1087 60 Spaces Moved 10474 | 1 293 409 338 464 456 7 377 535 242 251 421 127 171 344 1056 324 1076 426 1454 807 829 66 Core 194 | . . . . . . . . . . . . . . . . . . 1 . . 193 . Treads 9192 | . 200 409 338 464 456 7 377 535 242 251 421 127 171 344 1056 324 1076 425 781 807 381 . Legs 98 | 1 93 . . . . . . . . . . . . . . . . . 4 . . . Wheels . | . . . . . . . . . . . . . . . . . . . . . . . Hover 250 | . . . . . . . . . . . . . . . . . . . 250 . . . Flight 740 | . . . . . . . . . . . . . . . . . . . 419 . 255 66 Fastest Speed 25 | 120 120 160 160 160 160 160 160 160 160 160 160 160 160 164 166 168 165 165 100 158 25 40 Average Speed 169 | 120 147 160 160 160 160 160 182 160 160 160 230 160 161 166 167 168 168 286 196 159 95 40 Slowest Speed 1500 | 120 160 160 160 160 160 160 240 162 160 160 240 160 164 244 168 168 250 1500 490 163 160 40 Overloaded Moves . | . . . . . . . . . . . . . . . . . . . . . . . Propulsion Burnouts . | . . . . . . . . . . . . . . . . . . . . . . . Robots Hopped 2 | . . . . . . . . . . . . . . . . . . . . . 2 . Cave-ins Triggered 2 | . . . . . . . 1 . . . . . . . . . . . 1 . . . Exploration Rate (%) 42 | 2 47 90 38 83 70 8 35 15 8 83 9 4 62 10 94 52 95 80 37 33 28 2 Regions Visited 22 Branch Regions 9 Pre-discovered Areas 1 | . . 1 . . . . . . . . . . . . . . . . . . . . Known Exits Taken 5 | . . . 1 . . 1 . . . . . 1 . . . 1 . . 1 . . . Unknown Exits Taken 14 | 1 1 1 . 1 1 . 1 1 . . 1 . . 1 1 . 1 1 . 1 1 . Scrap Searched 5 | . . 1 . . . . . . . . . . . . 2 1 . 1 . . . . Spaces Dug 56 | . . . . . . . 28 . . 12 . . . . . . . . 16 . . . Terrain Destroyed 947 | . 8 . . . . . 28 . 3 18 15 . 2 12 31 6 130 30 124 270 270 . Melee 24 | . . . . . . . 8 . . . . . . . . . . . 16 . . . Projectile 103 | . . . . . . . . . 3 2 3 . 2 12 31 6 10 15 19 . . . AOE 820 | . 8 . . . . . 20 . . 16 12 . . . . . 120 15 89 270 270 . Terrain Rammed . | . . . . . . . . . . . . . . . . . . . . . . . Walls Destroyed . | . . . . . . . . . . . . . . . . . . . . . . . Machines Disabled . | . . . . . . . . . . . . . . . . . . . . . . . Actions | -11 -10 -10 -9 -9 -9 -8 -8 -7 -6 -6 -6 -5 -5 -4 -4 -4 -4 -3 -3 -2 -1 -1 --------- Run | Scr Mat Min Mat Min Exi Min Mat Fac Fac Was Fac Fac DSF Fac Upp Upp War Pro Res Res Acc Com Total 14526 | . 566 473 590 525 465 6 653 650 306 293 721 182 276 434 1137 344 1123 696 2928 1005 1067 86 Wait 2951 | . 202 34 158 34 . . 203 71 39 18 269 54 31 62 47 4 15 263 1135 151 153 8 Move 10448 | . 292 408 337 463 455 6 375 534 242 250 420 126 170 343 1055 323 1075 425 1453 806 824 66 Hop 2 | . . . . . . . . . . . . . . . . . . . . . 2 . Pick Up 136 | . 9 . 9 3 4 . 11 5 3 6 4 . 5 . 5 5 6 1 53 7 . . Fast Attach 124 | . 5 1 10 1 . . 6 9 4 2 4 . 11 2 1 2 6 6 44 1 9 . Attach 97 | . . . 7 2 . . 4 4 2 5 3 2 5 5 5 1 3 1 34 5 9 . Detach 41 | . . . 2 . . . 2 3 . 1 2 . 8 . . . . . 19 . 3 1 Swap 53 | . 2 . 3 . 2 . 2 5 1 2 . . 4 1 1 . 2 . 13 10 5 . Drop 160 | . 8 . 11 5 4 . 6 13 7 2 8 . 10 2 . 5 10 . 56 3 9 1 Fire 417 | . 48 30 53 17 . . 35 6 8 7 11 . 32 19 23 4 6 . 57 22 39 . Melee 87 | . . . . . . . 8 . . . . . . . . . . . 62 . 7 10 Ram . | . . . . . . . . . . . . . . . . . . . . . . . Kick . | . . . . . . . . . . . . . . . . . . . . . . . Crush 9 | . . . . . . . . . . . . . . . . . . . 2 . 7 . Escape Stasis 1 | . . . . . . . 1 . . . . . . . . . . . . . . . Rewire . | . . . . . . . . . . . . . . . . . . . . . . . Trap . | . . . . . . . . . . . . . . . . . . . . . . . Miscellaneous . | . . . . . . . . . . . . . . . . . . . . . . . Route ------- -11/Scrapyard -10/Materials (discovered 3 exits: *Mat / [*Min x2]) -10/Mines -9/Materials (discovered 3 exits: Mat x2 / *Min) -9/Mines (discovered 3 exits: *Mat x2 / *Exi) -9/Exiles -8/Mines -8/Materials -7/Factory -6/Factory -6/Waste -6/Factory -5/Factory -5/DSF -4/Factory -4/Upper Caves -4/Upper Caves -4/Warlord -3/Proximity Caves -3/Research (discovered 3 exits: *Res x2 / Qua) -2/Research -1/Access -1/Command History --------- Turn | Location | Event 1 | -11/Scrapyard | Discovered new exit (range 0) 1 | -11/Scrapyard | Entered Materials 321 | -10/Materials | Build established: Mutant 577 | -10/Materials | Discovered new exit (range 10) 591 | -10/Materials | Discovered new exit (range 16) 693 | -10/Materials | Build established: Scavenger-Mutant 771 | -10/Materials | Discovered new exit (range 13) 800 | -10/Materials | Entered Mines 1011 | -10/Mines | Learned location of Recycling (-7) 1093 | -10/Mines | Build established: Mutant 1241 | -10/Mines | Learned 2 Materials zone layouts 1558 | -10/Mines | Discovered new exit (range 8) 1579 | -10/Mines | Entered Materials 1579 | -9/Materials | Evolved 2 slots: Propulsion x1, Utility x1 1580 | -9/Materials | Identified exit to Materials 1824 | -9/Materials | Lost 5 parts (1p3n1w) 2109 | -9/Materials | Build established: Scavenger-Mutant 2321 | -9/Materials | Identified exit to Mines 2471 | -9/Materials | Build established: Mutant 2474 | -9/Materials | Entered Mines 2502 | -9/Mines | Met a Derelict bent on vengeance 2563 | -9/Mines | Assembled infested the area 2796 | -9/Mines | Discovered exit to Materials (range 8) 3057 | -9/Mines | Discovered exit to Materials (range 5) 3063 | -9/Mines | Found the Drone Emporium 3073 | -9/Mines | Learned Materials emergency access door positions 3085 | -9/Mines | Found Prototype Device 3085 | -9/Mines | Identified Bomb Drone Bay 3115 | -9/Mines | Learned Materials terminal intel 3303 | -9/Mines | Deemed a non-threat by the Exiles lab entrance 3303 | -9/Mines | Discovered new exit (range 5) 3309 | -9/Mines | Entered Exiles 3351 | -9/Exiles | Met 8R-AWN 3381 | -9/Exiles | Met EX-HEX 3425 | -9/Exiles | Met EX-BIN 3442 | -9/Exiles | Aligned with FarCom system 3444 | -9/Exiles | Given EX-Vault access code 3482 | -9/Exiles | Opened EX-Vault 3497 | -9/Exiles | Found AWS/Autocannon 3531 | -9/Exiles | Warned to stay clear of 0b10 Research branches 3576 | -9/Exiles | Met EX-DEC 4030 | -9/Exiles | Discovered new exit (range 11) 4046 | -9/Exiles | Left Exiles lab with AWS/Autocannon 4046 | -9/Exiles | Entered Mines 4046 | -8/Mines | Discovered exit to Materials (range 8) 4056 | -8/Mines | Entered Materials 4056 | -8/Materials | Evolved 2 slots: Utility x1, Weapon x1 4058 | -8/Materials | Loaded intel: 12 terminal locations 5070 | -8/Materials | Crushed by falling debris 5071 | -8/Materials | System corruption reached 10% 5086 | -8/Materials | Discovered new exit (range 6) 5094 | -8/Materials | Entered Factory 5094 | -7/Factory | Evolved 2 slots: Propulsion x1, Utility x1 5717 | -7/Factory | Build established: Tank 6054 | -7/Factory | Discovered new exit (range 16) 6078 | -7/Factory | Entered another Factory area 6078 | -6/Factory | Evolved 2 slots: Propulsion x1, Utility x1 6545 | -6/Factory | Sucked down chute 6545 | -6/Factory | Entered Waste 6560 | -6/Waste | Spotted C-40 Crusher 6576 | -6/Waste | Spotted C-40 Crusher 6576 | -6/Waste | Spotted C-40 Crusher 6577 | -6/Waste | Spotted C-40 Crusher 6613 | -6/Waste | Crushed by Compactor (0 parts destroyed, 1 dropped) 6622 | -6/Waste | Spotted C-40 Crusher 6622 | -6/Waste | Crushed by Compactor (1 part destroyed, 1 dropped) 6625 | -6/Waste | Destroyed C-40 Crusher 6625 | -6/Waste | Destroyed C-40 Crusher 6647 | -6/Waste | Spotted C-40 Crusher 6712 | -6/Waste | Warlord forces began an assault 6896 | -6/Waste | Allies destroyed C-40 Crusher 6923 | -6/Waste | Discovered new exit (range 15) 6971 | -6/Waste | Build established: Skirmisher 6974 | -6/Waste | Found Prototype Processor 6974 | -6/Waste | Identified Exp. Targeting Computer 7004 | -6/Waste | Entered Factory 7004 | -6/Factory | Accompanied by 13 allies 7985 | -6/Factory | Discovered new exit (range 8) 8296 | -6/Factory | Entered another Factory area 8296 | -5/Factory | Evolved 2 slots: Propulsion x1, Utility x1 8522 | -5/Factory | Identified exit to DSF 8554 | -5/Factory | Entered DSF 8577 | -5/DSF | Additional patrols routed to DSF 8584 | -5/DSF | Build established: Tank 8731 | -5/DSF | Discovered new exit (range 11) 8751 | -5/DSF | Found Imp. Powered Armor 8754 | -5/DSF | Lost 3 parts (2u1w) 8813 | -5/DSF | Sterilization system engaged 8833 | -5/DSF | Ambient heat levels rising (+10) 8848 | -5/DSF | Ambient heat levels rising (+10) 8863 | -5/DSF | Ambient heat levels rising (+10) 8878 | -5/DSF | Ambient heat levels rising (+10) 8893 | -5/DSF | Ambient heat levels rising (+10) 8908 | -5/DSF | Ambient heat levels rising (+10) 8923 | -5/DSF | Ambient heat levels rising (+10) 8923 | -5/DSF | Found Prototype Hackware 8923 | -5/DSF | Identified Exp. System Shield 8926 | -5/DSF | Found Exp. System Shield 8929 | -5/DSF | Found Exp. System Shield 8938 | -5/DSF | Ambient heat levels rising (+10) 8953 | -5/DSF | Ambient heat levels rising (+10) 8968 | -5/DSF | Ambient heat levels rising (+10) 8983 | -5/DSF | Ambient heat levels rising (+10) 8984 | -5/DSF | Entered Factory 8984 | -4/Factory | Evolved 2 slots: Power x1, Utility x1 9232 | -4/Factory | Build established: Hacker-Mutant 9436 | -4/Factory | Lost 4 parts (1p2n1w) 9634 | -4/Factory | Build established: Hacker-Skirmisher 9640 | -4/Factory | Discovered new exit (range 12) 9687 | -4/Factory | Entered Upper Caves 9949 | -4/Upper Caves | Spotted B-86 Titan 9976 | -4/Upper Caves | Build established: Hacker-Tank 10171 | -4/Upper Caves | Attracted the attention of an 0b10 checkpoint 10425 | -4/Upper Caves | Learned 12 Research zone layouts 10683 | -4/Upper Caves | Learned Research garrison access intel 11014 | -4/Upper Caves | Destroyed B-86 Titan 11039 | -4/Upper Caves | Lost 3 parts (1n2u) 11445 | -4/Upper Caves | Discovered new exit (range 6) 11590 | -4/Upper Caves | Entered another Upper Caves area 11833 | -4/Upper Caves | Learned 8 Research zone layouts 11833 | -4/Upper Caves | Learned Armory emergency access door positions 11833 | -4/Upper Caves | Learned Factory terminal intel 11905 | -4/Upper Caves | Identified exit to Warlord 11963 | -4/Upper Caves | Build established: Tank 12162 | -4/Upper Caves | Entered Warlord 12967 | -4/Warlord | Met Warlord 12988 | -4/Warlord | Warlord's base attacked by MAIN.C 13306 | -4/Warlord | Found Prototype Launcher 13306 | -4/Warlord | Identified Vortex Catalyst Activator 13338 | -4/Warlord | Warlord forces counterattacked 13663 | -4/Warlord | Warlord base infiltrated, sounded retreat 13867 | -4/Warlord | Build established: Scavenger-Tank 13898 | -4/Warlord | Spotted Striker 13925 | -4/Warlord | System corruption reached 10% 13934 | -4/Warlord | Destroyed Striker 13958 | -4/Warlord | Destroyed 9 combat bots 13988 | -4/Warlord | Spotted Striker 13999 | -4/Warlord | Spotted Executioner 14004 | -4/Warlord | Discovered new exit (range 15) 14009 | -4/Warlord | Found Prototype Launcher 14029 | -4/Warlord | Entered Proximity Caves 14489 | -3/Proximity Caves | Received a Behemoth hack from an annoying Tinkerer 14914 | -3/Proximity Caves | Lost 3 parts (1p1n1u) 15228 | -3/Proximity Caves | Destroyed 7 combat bots 15250 | -3/Proximity Caves | Discovered new exit (range 13) 15520 | -3/Proximity Caves | Entered Research 15520 | -3/Research | Evolved 2 slots: Utility x2 15521 | -3/Research | Identified exit to Research 15521 | -3/Research | Identified exit to Quarantine 15522 | -3/Research | Loaded intel: 4 garrison access locations 15822 | -3/Research | Build established: Scavenger-Skirmisher 16161 | -3/Research | Identified Chain Missile Launcher 16838 | -3/Research | Lost 3 parts (1p1n1w) 16936 | -3/Research | Cargo convoy interrupted 17294 | -3/Research | Build established: Scavenger-Gunner 17445 | -3/Research | Lost 4 parts (1n3u) 17688 | -3/Research | Crushed by falling debris 17688 | -3/Research | System corruption reached 10% 17742 | -3/Research | Lost 7 parts (1p4n2u) 17822 | -3/Research | Found Antimissile System 18097 | -3/Research | Found Fusion Bomb Launcher 18272 | -3/Research | Lost 3 parts (3n) 18403 | -3/Research | Found Prototype Launcher 18403 | -3/Research | Identified Adv. Micro-nuke Launcher 18609 | -3/Research | Build established: Scavenger-Mutant 18763 | -3/Research | Found Enh. Force Lance 19050 | -3/Research | System corruption reached 30% 19213 | -3/Research | Found Prototype Launcher 19213 | -3/Research | Identified Hellfire Missile Launcher 19484 | -3/Research | Found Prototype Slashing Weapon 19484 | -3/Research | Identified Nanosword 19541 | -3/Research | Found Gamma Bomb Array 20054 | -3/Research | Entered another Research area 20054 | -2/Research | Warlord forces began assault on 0b10 20054 | -2/Research | Evolved 2 slots: Propulsion x2 20085 | -2/Research | Lost 5 parts (2n2u1w) 20164 | -2/Research | Research machine network offline 20340 | -2/Research | Build established: Mutant 20562 | -2/Research | Spotted Striker 20612 | -2/Research | Borebot progress halted 20645 | -2/Research | Borebot progress halted 20722 | -2/Research | Met up with Warlord 20783 | -2/Research | Spotted Striker 20797 | -2/Research | Spotted Executioner 20804 | -2/Research | Spotted Executioner 20817 | -2/Research | Spotted Striker 20821 | -2/Research | Build established: Gunner 20952 | -2/Research | Spotted Striker 21147 | -2/Research | Warlord invited to help at Command 21275 | -2/Research | Spotted Striker 21276 | -2/Research | Destroyed Striker 21297 | -2/Research | Destroyed 7 combat bots 21400 | -2/Research | Spotted Executioner 21400 | -2/Research | Spotted Executioner 21403 | -2/Research | Destroyed Executioner 21408 | -2/Research | Destroyed Executioner 21433 | -2/Research | Destroyed 7 combat bots 21440 | -2/Research | Spotted B-90 Cyclops 21456 | -2/Research | Befriended a Behemoth using the annoying Tinkerer's hack 21499 | -2/Research | Discovered new exit (range 16) 21506 | -2/Research | Spotted Striker 21508 | -2/Research | Spotted Striker 21510 | -2/Research | Spotted Executioner 21510 | -2/Research | Destroyed Striker 21510 | -2/Research | Destroyed Striker 21510 | -2/Research | Spotted Striker 21512 | -2/Research | Destroyed Executioner 21515 | -2/Research | Destroyed Striker 21538 | -2/Research | Destroyed 13 combat bots 21574 | -2/Research | Entered Access 21574 | -1/Access | Accompanied by 1 ally 21574 | -1/Access | Evolved 2 slots: Propulsion x2 21626 | -1/Access | Garrison activated, responded to threat 21673 | -1/Access | Destroyed 8 combat bots 21936 | -1/Access | Build established: Mutant 22129 | -1/Access | Energy Cycler disabled 22195 | -1/Access | Garrison activated, responded to threat 22274 | -1/Access | High security lockdown imminent 22354 | -1/Access | High security lockdown engaged 22378 | -1/Access | Spotted B-99 Colossus 22424 | -1/Access | Lost 12 parts (2p5n1u4w) 22506 | -1/Access | Core integrity fell below 50% 22545 | -1/Access | Core integrity fell below 20% 22550 | -1/Access | Lost 3 parts (2n1u) 22641 | -1/Access | Discovered new exit (range 10) 22661 | -1/Access | Entered Command 22721 | -1/Command | Destroyed by S-43 Plague with Heavy Machine Gun Last Messages --------------- 22600_ >> Lost connection to Advanced Drone. 22601_ C-30 ARC bursts open, deploying its payload. 22601_ G-73 Enforcer unfolds itself. 22601_ I-47 Archangel unfolds itself. 22624_ ALERT: Heavy assault forces dispatched. 22631_ Terminal unresponsive. 22641_ EXIT=FOUND 22645_ ALERT: Suspicious intruders detected, dispatching Cutter reinforcements to area. 22650_ Sealed Heavy Doors breached. LOCATION=UNKNOWN GOAL=ESCAPE 22661_ ALERT: Rogue bot within command proximity. Terminate immediately. 22661_ Receiving FarCom transmissions... 22675_ Connecting with Cave Seal Controls... 22675_ Current location identified: Command 22693_ Dropped Quantum Reactor. 22709_ S-43 Plague destroyed. [Achievement: 20k Club] [Achievement: 30k Club] Map ----- +----------------------------------------------------+ | ?????????????????????????????????????????????????? | | ?????????????????????????????????????????????????? | | ?????????????????????????????????????????????????? | | ?????????????????????????????????????????????????? | | ?????????????????????????????????????????????????? | | ?????????????????????????????????????????????????? | | ?????????????????????????????????????????????????? | | ?????????????????????????????????????????????????? | | ?????????????????????????????????????????????????? | | ?????????????????????????????????????????????????? | | ?????????????????????????????????????????????????? | | ?????????????????????????????????????????????????? | | ?????????????????????????????????????????????????? | | ?????????????????????????????????????????????????? | | ?????????????????????????????????????????????????? | | ?????????????????????????????????????????????????? | | ?????????????????????????????????????????????????? | | ?????????????????????????????????????????????????? | | ?????????????????????????????????????????????????? | | ?????????????????????????????????????????????????? | | ?????????????????????????????????????????????????? | | ????????#######################################??? | | ????????# # | | ????????# [%s Y + | | ????????######+#########s###################+###+# | | ????????# ]# Rs@ #????????????????????? | | ????????# #s """ #????????????????????? | | ????????# + """" #????????????????????? | | ????????# # """T #????????????????????? | | ????????# # """ #????????????????????? | | ????????# # #????????????????????? | | ????????# "" ########????????????????????? | | ????????# """"#???????????????????????????? | | ????????# """"#???????????????????????????? | | ????????# "" #???????????????????????????? | | ????????# * ????????????????????????????? | | ????????# #???????????????????????????? | | ????????##############???????????????????????????? | | ?????????????????????????????????????????????????? | | ?????????????????????????????????????????????????? | | ?????????????????????????????????????????????????? | | ?????????????????????????????????????????????????? | | ?????????????????????????????????????????????????? | | ?????????????????????????????????????????????????? | | ?????????????????????????????????????????????????? | | ?????????????????????????????????????????????????? | | ?????????????????????????????????????????????????? | | ?????????????????????????????????????????????????? | | ?????????????????????????????????????????????????? | | ?????????????????????????????????????????????????? | +----------------------------------------------------+ Best States ------------- Heat Dissipation 105 Coolant Potential 50 Energy Generation 45 Energy Capacity 790 Matter Stores 600 Matter Capacity 900 Sight Range 16 Robot Scan Range 16 Terrain Scan Density 10 Base Temperature (-) 100 Corruption Containment 12 Armor Coverage 1450 Resistance: KI 30 Resistance: EM 20 Core Shielding 20 Propulsion Shielding 90 Point Defense Rating 240 Weapon Cycling 25 Evasion (%) 62 Targeting Accuracy 8 Launcher Accuracy 40 Target Analysis 12 Recoil Reduction 10 Particle Charging 15 Defensive Hacking 48 Item Schematics ----------------- None Robot Schematics ------------------ None Fabricated ------------ Nothing Alien Tech Used ----------------- None Achievements -------------- 20k Club 30k Club All-out Warlord Denied? No Explosion For You Rockin' Loadout Turtlemind Ultimate Loadout Woof! Z1$+NX3F=JRE3_ZNQR Challenges ------------ None Game ------ Seed BladeTeslaSuite Manual? 0 Play Time 03:11:51 Cumulative 92.9 hours Start 2022.06.01 @ 22:17:05 End 2022.06.02 @ 22:53:48 Sessions 7 Manual Loads 0 Difficulty Rogue Special Mode None Game No. 99 Rogue 99 Adventurer 0 Explorer 0 Win Type - Total 0 Types 0/0/0/0/0/0/0/0/0 Lore% 45 Gallery% 58 Achievement% 45 Wizard Run 0 Options --------- ASCII 0 Keyboard 0 Movement Mouse Keybinds 0 Fullscreen 1 Font 18/SmallcapsGlow Map View 76x50 Tactical HUD 1 Map Filters NONE Filters NONE Steam 1 RUN: 61bc8d89-272c-4b8f-88a3-86e08a963f37